[Event "2026 European Womens Championship"]
[Site "Batumi, GE"]
[Date "2026.06.02"]
[Round "8"]
[White "Gvetadze, Sofio"]
[Black "Jimenez Fernandez, Rebeca"]
[Result "1-0"]
[Board "41"]
[TimeControl "5400+30"]
[WhiteFideId "13601440"]
[BlackFideId "32070934"]
[WhiteElo "2311"]
[BlackElo "2166"]
[WhiteTitle "IM"]
[BlackTitle "WFM"]
[WhiteClock "0:13:54"]
[BlackClock "0:09:31"]
[Variant "Standard"]

1. e4 {[%clk 1:30:56]}  c6 {[%clk 1:30:55]} 2. d4 {[%clk 1:31:06]}  d5 {[%clk 1:31:21]} 3. exd5 {[%clk 1:31:12]}  cxd5 {[%clk 1:31:46]}
4. Bd3 {[%clk 1:31:27]}  Nc6 {[%clk 1:32:08]} 5. c3 {[%clk 1:31:52]}  Nf6 {[%clk 1:32:33]} 6. Bg5 {[%clk 1:28:26]}  Bg4 {[%clk 1:29:38]}
7. f3 {[%clk 1:28:25]}  Bh5 {[%clk 1:29:10]} 8. Ne2 {[%clk 1:28:43]}  Bg6 {[%clk 1:27:40]} 9. Nf4 {[%clk 1:26:05]}  e6 {[%clk 1:20:30]}
10. Nd2 {[%clk 1:15:33]}  Bd6 {[%clk 1:14:32]} 11. Qe2 {[%clk 1:11:17]}  Qc7 {[%clk 1:02:49]} 12. Qe3 {[%clk 0:58:37]}  Bxd3 {[%clk 0:58:05]}
13. Nxd3 {[%clk 0:58:06]}  Nd7 {[%clk 0:47:04]} 14. f4 {[%clk 0:56:20]}  O-O {[%clk 0:45:54]} 15. O-O {[%clk 0:53:24]}  Rae8 {[%clk 0:39:06]}
16. Bh4 {[%clk 0:49:45]}  Na5 {[%clk 0:36:04]} 17. b3 {[%clk 0:39:18]}  f6 {[%clk 0:32:26]} 18. Kh1 {[%clk 0:30:18]}  b6 {[%clk 0:31:18]}
19. Bg3 {[%clk 0:27:13]}  Nb8 {[%clk 0:29:54]} 20. Rac1 {[%clk 0:26:39]}  Nbc6 {[%clk 0:26:50]} 21. c4 {[%clk 0:23:44]}  dxc4 {[%clk 0:26:32]}
22. bxc4 {[%clk 0:22:54]}  Qd7 {[%clk 0:26:10]} 23. Nf3 {[%clk 0:15:38]}  Ne7 {[%clk 0:24:29]} 24. Be1 {[%clk 0:07:55]}  Nac6 {[%clk 0:23:41]}
25. Bc3 {[%clk 0:09:32]}  Nf5 {[%clk 0:23:37]} 26. Qf2 {[%clk 0:08:39]}  Bc7 {[%clk 0:19:06]} 27. Rfd1 {[%clk 0:08:29]}  Rd8 {[%clk 0:17:09]}
28. Rd2 {[%clk 0:06:41]}  Nfxd4 {[%clk 0:15:35]} 29. Nxd4 {[%clk 0:05:21]}  Nxd4 {[%clk 0:15:58]} 30. Nb4 {[%clk 0:05:28]}  e5 {[%clk 0:16:10]}
31. Nd5 {[%clk 0:05:04]}  Bd6 {[%clk 0:15:23]} 32. Bxd4 {[%clk 0:05:25]}  exd4 {[%clk 0:15:44]} 33. Qxd4 {[%clk 0:05:48]}  Qg4 {[%clk 0:12:13]}
34. Rf1 {[%clk 0:03:30]}  Bc5 {[%clk 0:12:10]} 35. Qd3 {[%clk 0:03:29]}  Rfe8 {[%clk 0:11:08]} 36. h3 {[%clk 0:03:44]}  Qh5 {[%clk 0:09:55]}
37. Rdd1 {[%clk 0:03:36]}  Qh4 {[%clk 0:08:29]} 38. Qf5 {[%clk 0:03:21]}  Kf7 {[%clk 0:04:22]} 39. a4 {[%clk 0:01:51]}  g6 {[%clk 0:04:32]}
40. Qc2 {[%clk 0:02:02]}  f5 {[%clk 0:01:58]} 41. a5 {[%clk 0:00:54]}  Re4 {[%clk 0:26:29]} 42. axb6 {[%clk 0:30:24]}  axb6 {[%clk 0:26:54]}
43. Qb3 {[%clk 0:23:42]}  Re2 {[%clk 0:24:23]} 44. Ra1 {[%clk 0:21:14]}  Rde8 {[%clk 0:23:04]} 45. Ra7+ {[%clk 0:20:52]}  Kg8 {[%clk 0:17:08]}
46. Qc3 {[%clk 0:19:56]}  Be7 {[%clk 0:17:27]} 47. c5 {[%clk 0:18:16]}  bxc5 {[%clk 0:11:02]} 48. Qc4 {[%clk 0:17:57]}  Bd8 {[%clk 0:09:31]}
49. Ne7+ {[%clk 0:13:54]} 1-0

[Event "2026 European Womens Championship"]
[Site "Batumi, GE"]
[Date "2026.06.02"]
[Round "8"]
[White "Charkhalashvili, Inga"]
[Black "Mgeladze, Kesaria"]
[Result "1-0"]
[Board "42"]
[TimeControl "5400+30"]
[WhiteFideId "13601431"]
[BlackFideId "13621130"]
[WhiteElo "2235"]
[BlackElo "2147"]
[WhiteTitle "WGM"]
[BlackTitle "WIM"]
[WhiteClock "0:13:32"]
[BlackClock "0:01:25"]
[Variant "Standard"]

1. d4 {[%clk 1:30:58]}  Nf6 {[%clk 1:30:55]} 2. Nf3 {[%clk 1:31:10]}  e6 {[%clk 1:31:20]} 3. g3 {[%clk 1:31:12]}  c5 {[%clk 1:31:30]}
4. Bg2 {[%clk 1:31:36]}  cxd4 {[%clk 1:31:53]} 5. Nxd4 {[%clk 1:32:00]}  d5 {[%clk 1:32:16]} 6. c4 {[%clk 1:31:50]}  e5 {[%clk 1:32:25]}
7. Nb3 {[%clk 1:27:51]}  d4 {[%clk 1:32:33]} 8. O-O {[%clk 1:28:05]}  Nc6 {[%clk 1:29:28]} 9. e3 {[%clk 1:20:41]}  d3 {[%clk 1:20:49]}
10. Nc3 {[%clk 1:19:46]}  Bg4 {[%clk 1:15:52]} 11. Qd2 {[%clk 1:15:06]}  a5 {[%clk 1:10:37]} 12. f4 {[%clk 1:07:42]}  e4 {[%clk 0:52:57]}
13. Qf2 {[%clk 0:54:11]}  Bf5 {[%clk 0:45:58]} 14. h3 {[%clk 0:53:53]}  h5 {[%clk 0:46:07]} 15. Nd4 {[%clk 0:46:55]}  Qd7 {[%clk 0:42:58]}
16. Nxf5 {[%clk 0:38:48]}  Qxf5 {[%clk 0:42:27]} 17. Nb5 {[%clk 0:38:32]}  O-O-O {[%clk 0:31:16]} 18. Bd2 {[%clk 0:38:48]}  Rh6 {[%clk 0:19:06]}
19. a3 {[%clk 0:36:03]}  Rg6 {[%clk 0:12:57]} 20. b4 {[%clk 0:31:45]}  Be7 {[%clk 0:12:11]} 21. Bc3 {[%clk 0:28:50]}  Rh8 {[%clk 0:07:14]}
22. Bxf6 {[%clk 0:19:08]}  gxf6 {[%clk 0:07:38]} 23. Nc3 {[%clk 0:19:30]}  Rhg8 {[%clk 0:05:29]} 24. Nxe4 {[%clk 0:19:48]}  axb4 {[%clk 0:05:18]}
25. axb4 {[%clk 0:20:11]}  Bxb4 {[%clk 0:05:12]} 26. Rfb1 {[%clk 0:19:17]}  Kc7 {[%clk 0:05:05]} 27. Qf3 {[%clk 0:17:23]}  d2 {[%clk 0:04:11]}
28. Kh2 {[%clk 0:14:57]}  Rd8 {[%clk 0:02:51]} 29. Nc3 {[%clk 0:13:26]}  Qc8 {[%clk 0:01:25]} 30. Nd5+ {[%clk 0:13:32]} 1-0

[Event "2026 European Womens Championship"]
[Site "Batumi, GE"]
[Date "2026.06.02"]
[Round "8"]
[White "Kirtadze, Anastasia"]
[Black "Golsta, Madara"]
[Result "1-0"]
[Board "43"]
[TimeControl "5400+30"]
[WhiteFideId "13622714"]
[BlackFideId "11607386"]
[WhiteElo "2233"]
[BlackElo "2023"]
[WhiteTitle "WIM"]
[WhiteClock "0:01:42"]
[BlackClock "0:01:35"]
[Variant "Standard"]

1. e4 {[%clk 1:26:58]}  e5 {[%clk 1:30:48]} 2. Nf3 {[%clk 1:26:17]}  Nc6 {[%clk 1:31:07]} 3. Nc3 {[%clk 1:23:00]}  Nf6 {[%clk 1:31:12]}
4. Nd5 {[%clk 1:16:26]}  Bc5 {[%clk 1:27:55]} 5. d3 {[%clk 1:13:29]}  Nxd5 {[%clk 1:19:03]} 6. exd5 {[%clk 1:13:40]}  Ne7 {[%clk 1:19:25]}
7. Nxe5 {[%clk 1:10:15]}  Nxd5 {[%clk 1:12:40]} 8. d4 {[%clk 1:08:39]}  Bd6 {[%clk 1:04:29]} 9. Bc4 {[%clk 1:04:45]}  Bxe5 {[%clk 0:58:52]}
10. dxe5 {[%clk 1:03:48]}  Nb4 {[%clk 0:53:18]} 11. a3 {[%clk 0:48:56]}  Nc6 {[%clk 0:53:15]} 12. Bf4 {[%clk 0:48:05]}  Qh4 {[%clk 0:47:48]}
13. Qd2 {[%clk 0:39:53]}  Nxe5 {[%clk 0:41:31]} 14. Bxe5 {[%clk 0:31:10]}  Qxc4 {[%clk 0:41:13]} 15. Bxg7 {[%clk 0:29:42]}  Rg8 {[%clk 0:41:15]}
16. Qg5 {[%clk 0:27:07]}  d6 {[%clk 0:31:31]} 17. O-O-O {[%clk 0:23:59]}  Be6 {[%clk 0:30:40]} 18. Rhe1 {[%clk 0:23:02]}  Qc5 {[%clk 0:24:54]}
19. Qf6 {[%clk 0:19:18]}  Kd7 {[%clk 0:23:48]} 20. Re5 {[%clk 0:13:53]}  Qc4 {[%clk 0:19:23]} 21. f4 {[%clk 0:13:06]}  Rxg7 {[%clk 0:17:52]}
22. Qxg7 {[%clk 0:12:32]}  Qxf4+ {[%clk 0:18:13]} 23. Kb1 {[%clk 0:12:57]}  Re8 {[%clk 0:12:30]} 24. Ree1 {[%clk 0:09:14]}  Qxh2 {[%clk 0:10:20]}
25. Qg5 {[%clk 0:06:13]}  a6 {[%clk 0:08:59]} 26. Rh1 {[%clk 0:02:40]}  h6 {[%clk 0:09:19]} 27. Qg7 {[%clk 0:01:54]}  Qf4 {[%clk 0:09:23]}
28. Rxh6 {[%clk 0:02:06]}  Qc4 {[%clk 0:08:58]} 29. b3 {[%clk 0:01:09]}  Qe4 {[%clk 0:06:58]} 30. Kb2 {[%clk 0:00:43]}  b5 {[%clk 0:03:54]}
31. Rd3 {[%clk 0:00:38]}  b4 {[%clk 0:02:17]} 32. axb4 {[%clk 0:00:54]}  Qxb4 {[%clk 0:02:22]} 33. Rd4 {[%clk 0:00:35]}  Qc5 {[%clk 0:01:56]}
34. Rhh4 {[%clk 0:00:39]}  Rb8 {[%clk 0:01:52]} 35. Qg3 {[%clk 0:00:44]}  a5 {[%clk 0:00:56]} 36. Ra4 {[%clk 0:00:37]}  Qb5 {[%clk 0:00:51]}
37. Qc3 {[%clk 0:00:49]}  Qe2 {[%clk 0:01:08]} 38. Ka3 {[%clk 0:00:40]}  Rb6 {[%clk 0:01:20]} 39. Qb2 {[%clk 0:00:34]}  Rc6 {[%clk 0:01:13]}
40. c4 {[%clk 0:00:35]}  Qe1 {[%clk 0:01:37]} 41. Rh5 {[%clk 0:20:36]}  Ra6 {[%clk 0:20:18]} 42. Rb5 {[%clk 0:10:02]}  Ra8 {[%clk 0:18:01]}
43. Ka2 {[%clk 0:09:26]}  Re8 {[%clk 0:15:38]} 44. Qb1 {[%clk 0:07:05]}  Qd2+ {[%clk 0:10:13]} 45. Ka3 {[%clk 0:07:18]}  Bg4 {[%clk 0:08:20]}
46. c5 {[%clk 0:03:00]}  Re1 {[%clk 0:04:22]} 47. Qb2 {[%clk 0:03:06]}  Qxb2+ {[%clk 0:01:22]} 48. Kxb2 {[%clk 0:03:34]}  Re2+ {[%clk 0:01:45]}
49. Kc3 {[%clk 0:02:28]}  Rxg2 {[%clk 0:02:09]} 50. cxd6 {[%clk 0:01:19]}  Kxd6 {[%clk 0:02:32]} 51. Raxa5 {[%clk 0:00:44]}  Be6 {[%clk 0:02:46]}
52. Ra6+ {[%clk 0:00:44]}  c6 {[%clk 0:03:06]} 53. Rb4 {[%clk 0:00:48]}  Kc5 {[%clk 0:02:50]} 54. Ra5+ {[%clk 0:00:51]}  Kd6 {[%clk 0:03:14]}
55. Rd4+ {[%clk 0:01:03]}  Kc7 {[%clk 0:02:31]} 56. Rd3 {[%clk 0:00:49]}  Kb6 {[%clk 0:02:21]} 57. b4 {[%clk 0:00:37]}  Ra2 {[%clk 0:01:15]}
58. Rc5 {[%clk 0:00:36]}  Ra3+ {[%clk 0:01:34]} 59. Kd4 {[%clk 0:00:52]}  Ra4 {[%clk 0:01:46]} 60. Kc3 {[%clk 0:00:43]}  Ra3+ {[%clk 0:02:09]}
61. Kd4 {[%clk 0:00:42]}  Ra4 {[%clk 0:02:35]} 62. Kc3 {[%clk 0:00:35]}  Ra3+ {[%clk 0:02:59]} 63. Kd2 {[%clk 0:00:55]}  Ra2+ {[%clk 0:02:47]}
64. Ke3 {[%clk 0:00:59]}  Rb2 {[%clk 0:03:01]} 65. Rd6 {[%clk 0:00:39]}  Rb3+ {[%clk 0:03:13]} 66. Kd2 {[%clk 0:00:42]}  Rxb4 {[%clk 0:03:28]}
67. Rcxc6+ {[%clk 0:00:36]}  Kb7 {[%clk 0:03:51]} 68. Rc3 {[%clk 0:00:34]}  Rb6 {[%clk 0:04:03]} 69. Rd4 {[%clk 0:00:39]}  Rc6 {[%clk 0:04:07]}
70. Rcd3 {[%clk 0:00:52]}  Kc7 {[%clk 0:04:12]} 71. Ke3 {[%clk 0:01:17]}  Rb6 {[%clk 0:04:02]} 72. Ke4 {[%clk 0:01:15]}  Rb5 {[%clk 0:03:07]}
73. Rc3+ {[%clk 0:01:26]}  Kb7 {[%clk 0:03:15]} 74. Rd8 {[%clk 0:01:39]}  Rb4+ {[%clk 0:03:11]} 75. Ke5 {[%clk 0:01:49]}  Rc4 {[%clk 0:03:15]}
76. Ra3 {[%clk 0:01:47]}  Kc7 {[%clk 0:03:20]} 77. Rda8 {[%clk 0:02:07]}  Rc5+ {[%clk 0:03:26]} 78. Kf6 {[%clk 0:02:30]}  Kc6 {[%clk 0:02:56]}
79. R3a6+ {[%clk 0:01:42]}  Kd5 {[%clk 0:03:05]} 80. Rd8+ {[%clk 0:02:02]}  Ke4 {[%clk 0:03:19]} 81. Ra4+ {[%clk 0:02:24]}  Ke3 {[%clk 0:03:24]}
82. Ra3+ {[%clk 0:02:19]}  Ke4 {[%clk 0:03:21]} 83. Rh8 {[%clk 0:02:31]}  Rf5+ {[%clk 0:02:17]} 84. Ke7 {[%clk 0:02:55]}  Rd5 {[%clk 0:01:48]}
85. Rh4+ {[%clk 0:02:43]}  Kf5 {[%clk 0:02:05]} 86. Rf3+ {[%clk 0:02:16]}  Kg5 {[%clk 0:02:08]} 87. Rh7 {[%clk 0:01:56]}  Rd7+ {[%clk 0:02:22]}
88. Ke8 {[%clk 0:02:12]}  Kg6 {[%clk 0:00:42]} 89. Rh8 {[%clk 0:01:43]}  Rd5 {[%clk 0:00:33]} 90. Rg8+ {[%clk 0:01:45]}  Kh7 {[%clk 0:00:57]}
91. Rg1 {[%clk 0:01:29]}  Rh5 {[%clk 0:00:58]} 92. Kf8 {[%clk 0:00:52]}  Rh4 {[%clk 0:00:39]} 93. Rg7+ {[%clk 0:00:35]}  Kh6 {[%clk 0:00:36]}
94. Rfg3 {[%clk 0:00:35]}  Rc4 {[%clk 0:00:33]} 95. Rg1 {[%clk 0:00:35]}  Rc8+ {[%clk 0:00:49]} 96. Ke7 {[%clk 0:01:00]}  Rc5 {[%clk 0:00:36]}
97. R7g2 {[%clk 0:00:49]}  Rh5 {[%clk 0:00:49]} 98. Rg8 {[%clk 0:01:03]}  Kh7 {[%clk 0:01:09]} 99. R1g7 {[%clk 0:01:16]}  Kh6 {[%clk 0:01:35]}
100. Kf8 {[%clk 0:01:42]} 1-0

[Event "2026 European Womens Championship"]
[Site "Batumi, GE"]
[Date "2026.06.02"]
[Round "8"]
[White "Mamedjarova, Turkan"]
[Black "Hariharan, Shambavi"]
[Result "1-0"]
[Board "44"]
[TimeControl "5400+30"]
[WhiteFideId "13402005"]
[BlackFideId "488160"]
[WhiteElo "2222"]
[BlackElo "2008"]
[WhiteTitle "WGM"]
[BlackTitle "WFM"]
[WhiteClock "0:04:13"]
[BlackClock "0:01:53"]
[Variant "Standard"]

1. d4 {[%clk 1:30:56]}  Nf6 {[%clk 1:30:55]} 2. Nf3 {[%clk 1:31:20]}  e6 {[%clk 1:31:16]} 3. Bf4 {[%clk 1:31:33]}  c5 {[%clk 1:30:25]}
4. c3 {[%clk 1:27:23]}  d5 {[%clk 1:30:46]} 5. e3 {[%clk 1:27:26]}  Bd6 {[%clk 1:30:44]} 6. Bg3 {[%clk 1:26:15]}  Qc7 {[%clk 1:29:56]}
7. Bd3 {[%clk 1:25:09]}  Nbd7 {[%clk 1:29:55]} 8. Nbd2 {[%clk 1:24:41]}  O-O {[%clk 1:29:15]} 9. O-O {[%clk 1:21:31]}  e5 {[%clk 1:23:01]}
10. dxe5 {[%clk 1:11:43]}  Nxe5 {[%clk 1:23:19]} 11. Nxe5 {[%clk 1:11:59]}  Bxe5 {[%clk 1:23:44]} 12. f4 {[%clk 1:10:11]}  Bd6 {[%clk 1:23:59]}
13. c4 {[%clk 1:09:42]}  b5 {[%clk 1:06:45]} 14. b3 {[%clk 1:02:15]}  bxc4 {[%clk 0:59:57]} 15. bxc4 {[%clk 1:02:41]}  Ba6 {[%clk 0:59:37]}
16. Qc2 {[%clk 0:57:36]}  Rae8 {[%clk 0:54:00]} 17. Rae1 {[%clk 0:53:06]}  Kh8 {[%clk 0:51:52]} 18. cxd5 {[%clk 0:47:21]}  c4 {[%clk 0:46:48]}
19. Nxc4 {[%clk 0:46:55]}  Rc8 {[%clk 0:43:21]} 20. Rc1 {[%clk 0:33:51]}  Nxd5 {[%clk 0:32:10]} 21. Qe2 {[%clk 0:29:25]}  Bc5 {[%clk 0:15:04]}
22. Bf2 {[%clk 0:24:54]}  Nb4 {[%clk 0:13:20]} 23. Bf5 {[%clk 0:19:08]}  Rce8 {[%clk 0:09:33]} 24. Rfd1 {[%clk 0:15:32]}  Qe7 {[%clk 0:04:53]}
25. a3 {[%clk 0:14:27]}  Nc6 {[%clk 0:04:22]} 26. Qf3 {[%clk 0:13:49]}  Bb5 {[%clk 0:01:30]} 27. Qh3 {[%clk 0:07:49]}  g6 {[%clk 0:00:56]}
28. Bxg6 {[%clk 0:06:10]}  fxg6 {[%clk 0:00:28]} 29. Rd7 {[%clk 0:06:38]}  Qxd7 {[%clk 0:00:41]} 30. Qxd7 {[%clk 0:07:06]}  Nd4 {[%clk 0:00:49]}
31. Qg4 {[%clk 0:05:46]}  Nf5 {[%clk 0:01:11]} 32. Ne5 {[%clk 0:03:53]}  Nxe3 {[%clk 0:00:36]} 33. Nxg6+ {[%clk 0:03:59]}  hxg6 {[%clk 0:01:00]}
34. Qh3+ {[%clk 0:03:05]}  Kg8 {[%clk 0:01:13]} 35. Rxc5 {[%clk 0:03:19]}  Rxf4 {[%clk 0:01:20]} 36. Rc7 {[%clk 0:03:07]}  Rf7 {[%clk 0:01:07]}
37. Rxf7 {[%clk 0:03:20]}  Kxf7 {[%clk 0:01:34]} 38. Bxe3 {[%clk 0:03:44]}  Rf8 {[%clk 0:01:29]} 39. Qf3+ {[%clk 0:03:50]}  Kg7 {[%clk 0:01:53]}
40. Qb7+ {[%clk 0:04:13]} 1-0

[Event "2026 European Womens Championship"]
[Site "Batumi, GE"]
[Date "2026.06.02"]
[Round "8"]
[White "Tirpan, Ceren"]
[Black "Nahapetyan, Ani"]
[Result "1-0"]
[Board "45"]
[TimeControl "5400+30"]
[WhiteFideId "26385309"]
[BlackFideId "13317776"]
[WhiteElo "2209"]
[BlackElo "1827"]
[WhiteTitle "WFM"]
[WhiteClock "0:16:52"]
[BlackClock "0:32:06"]
[Variant "Standard"]

1. e4 {[%clk 1:30:55]}  e6 {[%clk 1:29:23]} 2. d4 {[%clk 1:31:19]}  d5 {[%clk 1:29:46]} 3. e5 {[%clk 1:31:42]}  c5 {[%clk 1:30:04]}
4. c3 {[%clk 1:32:07]}  Nc6 {[%clk 1:29:40]} 5. Nf3 {[%clk 1:32:31]}  Bd7 {[%clk 1:27:51]} 6. Be2 {[%clk 1:32:54]}  Nge7 {[%clk 1:27:40]}
7. O-O {[%clk 1:33:13]}  Ng6 {[%clk 1:26:31]} 8. g3 {[%clk 1:33:27]}  f6 {[%clk 1:24:47]} 9. exf6 {[%clk 1:27:27]}  Qxf6 {[%clk 1:23:59]}
10. Bg5 {[%clk 1:13:21]}  Qf7 {[%clk 1:24:03]} 11. c4 {[%clk 1:13:23]}  cxd4 {[%clk 1:18:08]} 12. Nxd4 {[%clk 1:06:26]}  Bc5 {[%clk 1:15:38]}
13. Nb3 {[%clk 0:55:41]}  Be7 {[%clk 1:12:47]} 14. Be3 {[%clk 0:50:38]}  O-O {[%clk 1:10:57]} 15. Nc3 {[%clk 0:50:59]}  dxc4 {[%clk 1:05:46]}
16. Qxd7 {[%clk 0:48:15]}  Nce5 {[%clk 0:56:07]} 17. Qxb7 {[%clk 0:43:00]}  cxb3 {[%clk 0:55:45]} 18. f4 {[%clk 0:34:04]}  Rab8 {[%clk 0:53:42]}
19. Qa6 {[%clk 0:33:47]}  Nd7 {[%clk 0:52:46]} 20. f5 {[%clk 0:31:42]}  Nc5 {[%clk 0:50:00]} 21. fxg6 {[%clk 0:30:46]}  Qxf1+ {[%clk 0:49:55]}
22. Bxf1 {[%clk 0:31:11]}  Nxa6 {[%clk 0:50:17]} 23. gxh7+ {[%clk 0:31:37]}  Kxh7 {[%clk 0:50:21]} 24. Bxa6 {[%clk 0:31:57]}  Rf3 {[%clk 0:48:43]}
25. Bf4 {[%clk 0:24:09]}  Rb6 {[%clk 0:45:23]} 26. Be2 {[%clk 0:24:12]}  Bc5+ {[%clk 0:44:36]} 27. Kh1 {[%clk 0:23:37]}  Rf2 {[%clk 0:44:24]}
28. Bd3+ {[%clk 0:21:26]}  Kg8 {[%clk 0:44:28]} 29. Nd1 {[%clk 0:21:43]}  Bd4 {[%clk 0:40:47]} 30. axb3 {[%clk 0:17:11]}  Rf3 {[%clk 0:38:19]}
31. Bc4 {[%clk 0:17:23]}  g5 {[%clk 0:36:59]} 32. Kg2 {[%clk 0:14:11]}  Rfxb3 {[%clk 0:32:17]} 33. Bxb3 {[%clk 0:14:13]}  gxf4 {[%clk 0:32:42]}
34. Bc4 {[%clk 0:13:24]}  fxg3 {[%clk 0:32:58]} 35. hxg3 {[%clk 0:13:47]}  Bxb2 {[%clk 0:32:34]} 36. Nxb2 {[%clk 0:12:32]}  Rxb2+ {[%clk 0:32:57]}
37. Kf3 {[%clk 0:12:55]}  Rb7 {[%clk 0:32:34]} 38. Bxe6+ {[%clk 0:13:09]}  Kg7 {[%clk 0:32:59]} 39. Ra6 {[%clk 0:13:18]}  Rc7 {[%clk 0:32:42]}
40. Kf4 {[%clk 0:13:41]}  Re7 {[%clk 0:31:48]} 41. Kg5 {[%clk 0:13:58]}  Rc7 {[%clk 0:32:07]} 42. Bf5 {[%clk 0:14:19]}  Kh8 {[%clk 0:31:51]}
43. g4 {[%clk 0:14:36]}  Rg7+ {[%clk 0:31:45]} 44. Kh6 {[%clk 0:14:57]}  Rh7+ {[%clk 0:31:54]} 45. Kg5 {[%clk 0:15:23]}  Rg7+ {[%clk 0:32:19]}
46. Rg6 {[%clk 0:15:35]}  Rb7 {[%clk 0:31:48]} 47. Rh6+ {[%clk 0:15:50]}  Kg8 {[%clk 0:32:03]} 48. Be6+ {[%clk 0:15:48]}  Kg7 {[%clk 0:32:26]}
49. Rg6+ {[%clk 0:16:14]}  Kh8 {[%clk 0:32:51]} 50. Kf6 {[%clk 0:16:31]}  Kh7 {[%clk 0:32:06]} 51. g5 {[%clk 0:16:52]} 1-0

[Event "2026 European Womens Championship"]
[Site "Batumi, GE"]
[Date "2026.06.02"]
[Round "8"]
[White "Huseynova, Lala"]
[Black "Bashylina, Luisa"]
[Result "0-1"]
[Board "46"]
[TimeControl "5400+30"]
[WhiteFideId "13431781"]
[BlackFideId "12983292"]
[WhiteElo "2149"]
[BlackElo "2208"]
[WhiteTitle "WFM"]
[BlackTitle "WFM"]
[WhiteClock "0:04:02"]
[BlackClock "0:04:20"]
[Variant "Standard"]

1. e4 {[%clk 1:29:32]}  c5 {[%clk 1:30:55]} 2. Nf3 {[%clk 1:29:47]}  a6 {[%clk 1:31:20]} 3. c3 {[%clk 1:25:39]}  d5 {[%clk 1:31:32]}
4. exd5 {[%clk 1:24:01]}  Qxd5 {[%clk 1:31:57]} 5. Be2 {[%clk 1:17:12]}  e6 {[%clk 1:32:08]} 6. O-O {[%clk 1:15:40]}  Nf6 {[%clk 1:32:24]}
7. d4 {[%clk 1:12:14]}  Nc6 {[%clk 1:32:15]} 8. Be3 {[%clk 1:11:33]}  cxd4 {[%clk 1:32:01]} 9. Nxd4 {[%clk 1:09:08]}  Nxd4 {[%clk 1:32:24]}
10. Qxd4 {[%clk 1:05:16]}  Be7 {[%clk 1:32:19]} 11. Bf3 {[%clk 1:01:09]}  Qf5 {[%clk 1:32:20]} 12. Qf4 {[%clk 0:56:57]}  Qxf4 {[%clk 1:08:10]}
13. Bxf4 {[%clk 0:56:20]}  Nd7 {[%clk 1:08:27]} 14. Re1 {[%clk 0:51:36]}  Nc5 {[%clk 1:05:35]} 15. Bg3 {[%clk 0:45:51]}  f6 {[%clk 0:57:17]}
16. b4 {[%clk 0:38:06]}  Na4 {[%clk 0:44:55]} 17. Bd1 {[%clk 0:35:25]}  Nb6 {[%clk 0:44:46]} 18. Bb3 {[%clk 0:34:24]}  Kf7 {[%clk 0:44:57]}
19. Nd2 {[%clk 0:32:37]}  Rd8 {[%clk 0:40:10]} 20. Nf3 {[%clk 0:29:50]}  Nd5 {[%clk 0:40:24]} 21. Rac1 {[%clk 0:29:16]}  Bd7 {[%clk 0:26:42]}
22. a3 {[%clk 0:27:21]}  Rac8 {[%clk 0:26:07]} 23. c4 {[%clk 0:27:23]}  Nc7 {[%clk 0:24:14]} 24. Rcd1 {[%clk 0:22:47]}  Kf8 {[%clk 0:22:46]}
25. c5 {[%clk 0:18:55]}  e5 {[%clk 0:21:44]} 26. Nd2 {[%clk 0:19:08]}  Nb5 {[%clk 0:19:48]} 27. Nc4 {[%clk 0:18:10]}  Be6 {[%clk 0:19:08]}
28. f4 {[%clk 0:14:08]}  Nd4 {[%clk 0:18:50]} 29. Ba2 {[%clk 0:13:28]}  Ne2+ {[%clk 0:15:14]} 30. Kf2 {[%clk 0:12:39]}  Rxd1 {[%clk 0:15:29]}
31. Rxe2 {[%clk 0:10:38]}  Bxc4 {[%clk 0:13:00]} 32. Bxc4 {[%clk 0:11:02]}  Rd4 {[%clk 0:12:52]} 33. Be6 {[%clk 0:10:34]}  Rc6 {[%clk 0:13:10]}
34. f5 {[%clk 0:10:48]}  a5 {[%clk 0:13:15]} 35. Ke1 {[%clk 0:09:55]}  axb4 {[%clk 0:08:39]} 36. Bf2 {[%clk 0:08:06]}  bxa3 {[%clk 0:08:33]}
37. Bxd4 {[%clk 0:08:33]}  exd4 {[%clk 0:08:58]} 38. Kd2 {[%clk 0:07:35]}  Bxc5 {[%clk 0:05:59]} 39. Kd3 {[%clk 0:07:55]}  b5 {[%clk 0:05:16]}
40. Bd7 {[%clk 0:07:16]}  Rb6 {[%clk 0:05:15]} 41. Re8+ {[%clk 0:07:28]}  Kf7 {[%clk 0:05:40]} 42. Rc8 {[%clk 0:07:12]}  Bd6 {[%clk 0:04:47]}
43. Kxd4 {[%clk 0:03:29]}  Ke7 {[%clk 0:03:12]} 44. Be6 {[%clk 0:03:21]}  Be5+ {[%clk 0:03:34]} 45. Kd5 {[%clk 0:02:33]}  a2 {[%clk 0:03:01]}
46. Rg8 {[%clk 0:02:10]}  Rd6+ {[%clk 0:02:51]} 47. Kc5 {[%clk 0:02:33]}  Rxe6 {[%clk 0:02:07]} 48. Rxg7+ {[%clk 0:02:14]}  Kf8 {[%clk 0:02:17]}
49. Ra7 {[%clk 0:02:08]}  a1=Q {[%clk 0:02:03]} 50. Rxa1 {[%clk 0:02:35]}  Bxa1 {[%clk 0:02:27]} 51. fxe6 {[%clk 0:03:03]}  Ke7 {[%clk 0:02:50]}
52. Kxb5 {[%clk 0:03:26]}  Kxe6 {[%clk 0:03:16]} 53. Kc4 {[%clk 0:03:53]}  Be5 {[%clk 0:03:38]} 54. g3 {[%clk 0:04:20]}  Kf5 {[%clk 0:04:02]} 0-1

[Event "2026 European Womens Championship"]
[Site "Batumi, GE"]
[Date "2026.06.02"]
[Round "8"]
[White "Mkrtchyan, Anahit H."]
[Black "Antova, Gabriela"]
[Result "0-1"]
[Board "47"]
[TimeControl "5400+30"]
[WhiteFideId "13314858"]
[BlackFideId "2915235"]
[WhiteElo "2107"]
[BlackElo "2203"]
[BlackTitle "WGM"]
[WhiteClock "0:00:39"]
[BlackClock "0:13:36"]
[Variant "Standard"]

1. e4 {[%clk 1:30:53]}  e5 {[%clk 1:30:46]} 2. Nf3 {[%clk 1:31:18]}  Nc6 {[%clk 1:31:09]} 3. Bb5 {[%clk 1:31:44]}  a6 {[%clk 1:31:28]}
4. Ba4 {[%clk 1:32:10]}  d6 {[%clk 1:31:32]} 5. O-O {[%clk 1:32:04]}  Bd7 {[%clk 1:31:36]} 6. c3 {[%clk 1:32:10]}  g6 {[%clk 1:31:39]}
7. d4 {[%clk 1:30:46]}  Bg7 {[%clk 1:31:42]} 8. Re1 {[%clk 1:28:24]}  Nf6 {[%clk 1:31:01]} 9. d5 {[%clk 1:24:23]}  Ne7 {[%clk 1:31:02]}
10. Bxd7+ {[%clk 1:24:36]}  Nxd7 {[%clk 1:30:59]} 11. c4 {[%clk 1:24:39]}  h6 {[%clk 1:29:16]} 12. Nc3 {[%clk 1:19:59]}  f5 {[%clk 1:27:15]}
13. b4 {[%clk 1:10:11]}  O-O {[%clk 1:16:10]} 14. a4 {[%clk 0:58:20]}  f4 {[%clk 1:10:24]} 15. Ba3 {[%clk 0:53:53]}  g5 {[%clk 1:00:23]}
16. Nd2 {[%clk 0:41:14]}  Ng6 {[%clk 0:58:30]} 17. c5 {[%clk 0:37:58]}  Nf6 {[%clk 0:57:32]} 18. b5 {[%clk 0:34:18]}  Rf7 {[%clk 0:51:36]}
19. Qb3 {[%clk 0:28:38]}  Bf8 {[%clk 0:50:31]} 20. cxd6 {[%clk 0:16:03]}  cxd6 {[%clk 0:50:08]} 21. b6 {[%clk 0:15:26]}  g4 {[%clk 0:40:21]}
22. Nd1 {[%clk 0:11:13]}  f3 {[%clk 0:29:40]} 23. Ne3 {[%clk 0:10:54]}  fxg2 {[%clk 0:27:41]} 24. Nf5 {[%clk 0:11:07]}  Nf4 {[%clk 0:24:13]}
25. Bxd6 {[%clk 0:08:56]}  Bxd6 {[%clk 0:23:49]} 26. Nxh6+ {[%clk 0:09:20]}  Kg7 {[%clk 0:23:26]} 27. Nxf7 {[%clk 0:09:39]}  Kxf7 {[%clk 0:23:50]}
28. Nc4 {[%clk 0:08:40]}  Nh7 {[%clk 0:20:59]} 29. Re3 {[%clk 0:02:16]}  Ng5 {[%clk 0:20:58]} 30. Rc1 {[%clk 0:01:18]}  Kf6 {[%clk 0:14:58]}
31. Nxd6 {[%clk 0:00:44]}  Qxd6 {[%clk 0:15:02]} 32. Rc7 {[%clk 0:00:44]}  Ngh3+ {[%clk 0:13:00]} 33. Rxh3 {[%clk 0:01:10]}  gxh3 {[%clk 0:13:22]}
34. Rc2 {[%clk 0:00:38]}  Rc8 {[%clk 0:12:26]} 35. Qg3 {[%clk 0:00:39]}  Ne2+ {[%clk 0:13:36]} 0-1